fUSD/lending_fUSD_20250209
["ID","MTS","AMOUNT","RATE_DAILY","PERIOD"]
[352384797,1739069471009,-150.0,0.00011536,2]
[352384798,1739069471019,-150.0,0.00011538,2]
[352384799,1739069471029,-162.48928721,0.0001156,2]
[352384800,1739069471038,-150.0,0.00011561,2]
[352384801,1739069471047,-1384.0,0.00011562,2]
[352384802,1739069471057,-754.344585,0.00011564,2]
[352384803,1739069471066,-837.418506,0.00011564,2]
[352384804,1739069471076,-571.5,0.00011564,2]
[352384805,1739069471085,-1439.98,0.00011564,2]
[352384806,1739069471094,-1335.02,0.00011564,2]
[352384807,1739069471103,-559.11,0.00011564,2]
[352384808,1739069471113,-1093.73,0.00011564,2]
[352384809,1739069471122,-803.53,0.00011564,2]
[352384810,1739069471131,-1890.81,0.00011564,2]
[352384811,1739069471140,-1559.98,0.00011564,2]
[352384812,1739069471149,-967.4,0.00011564,2]
[352384813,1739069471159,-1029.95,0.00011564,2]
[352384814,1739069471169,-920.97,0.00011564,2]
[352384815,1739069471178,-1867.45,0.00011564,2]
[352384816,1739069471187,-789.25,0.00011564,2]
[352384817,1739069471197,-3744.99,0.00011564,2]
[352384818,1739069471206,-1560.02,0.00011564,2]
[352384819,1739069471216,-736.32,0.00011564,2]
[352384820,1739069471226,-2494.58,0.00011564,2]
[352384821,1739069471237,-947.08,0.00011564,2]
[352384822,1739069471249,-1906.86,0.00011564,2]
[352384823,1739069471258,-1559.78,0.00011564,2]
[352384824,1739069471268,-3359.76,0.00011564,2]
[352384825,1739069471278,-1389.48,0.00011564,2]
[352384826,1739069471289,-1064.16,0.00011564,2]
[352384827,1739069471299,-630.3,0.00011564,2]
[352384828,1739069471308,-999.14,0.00011564,2]
[352384829,1739069471318,-1578.2,0.00011564,2]
[352384830,1739069471328,-1129.0,0.00011564,2]
[352384831,1739069471337,-1301.09,0.00011564,2]
[352384832,1739069471346,-1291.18,0.00011564,2]
[352384833,1739069471356,-1876.52,0.00011564,2]
[352384834,1739069471365,-1866.23,0.00011564,2]
[352384835,1739069471374,-2220.41,0.00011564,2]
[352384836,1739069471384,-1564.75,0.00011564,2]
[352384837,1739069471393,-78.96657697,0.00011564,2]
[352384838,1739069471407,-847.14342303,0.00011564,2]
[352384839,1739069471416,-1329.14,0.00011564,2]
[352384840,1739069471425,-566.03977342,0.00011564,2]
[352384841,1739069471437,-1941.11022658,0.00011564,2]
[352384842,1739069471447,-587.83,0.00011564,2]
[352384843,1739069471457,-853.77,0.00011564,2]
[352384844,1739069471467,-1628.99,0.00011564,2]
[352384845,1739069471477,-954.02,0.00011564,2]
[352384846,1739069471486,-938.82,0.00011564,2]
[352384847,1739069471496,-1573.35,0.00011564,2]
[352384848,1739069471505,-1805.8,0.00011564,2]
[352384849,1739069471514,-774.74,0.00011564,2]
[352384850,1739069471524,-611.09,0.00011564,2]
[352384851,1739069471533,-500.0,0.00011564,2]
[352384852,1739069471542,-1000.0,0.00011574,2]
[352384853,1739069471552,-150.85,0.00011585,2]
[352384854,1739069471562,-150.0,0.00011585,2]
[352384855,1739069471572,-1384.0,0.00011589,2]
[352384856,1739069471582,-151.0,0.0001159,2]
[352384857,1739069471591,-151.0,0.0001159,2]
[352384858,1739069471600,-609.79071918,0.00011603,2]
[352384859,1739069471610,-150.0,0.00011608,2]
[352384860,1739069471620,-1384.0,0.00011617,2]
[352384861,1739069471630,-500.0,0.00011632,2]
[352384862,1739069471640,-812.04,0.00011632,2]
[352384863,1739069471650,-500.0,0.00011632,2]
[352384864,1739069471659,-650.98,0.00011632,2]
[352384865,1739069471669,-725.66,0.00011632,2]
[352384866,1739069471679,-626.3,0.00011632,2]
[352384867,1739069471690,-686.17,0.00011632,2]
[352384868,1739069471700,-751.94,0.00011632,2]
[352384869,1739069471710,-809.56,0.00011632,2]
[352384870,1739069471719,-500.0,0.00011632,2]
[352384871,1739069471729,-850.73,0.00011632,2]
[352384872,1739069471739,-810.94,0.00011632,2]
[352384873,1739069471749,-178.75505267,0.00011632,2]
[352384874,1739069471758,-500.0,0.00011632,2]
[352384875,1739069471767,-819.57,0.00011632,2]
[352384876,1739069471776,-556.76,0.00011632,2]
[352384877,1739069471786,-170.43400157,0.00011632,2]
[352384887,1739070486993,1000.0,0.0002,120]
[352384890,1739070627151,1000.0,0.0002,120]
[352384930,1739070632466,-889.06,8.219e-05,2]
[352384931,1739070632476,-1.94211688,8.704e-05,2]
[352384932,1739070632519,-433.75788312,8.704e-05,2]
[352384933,1739070632528,-608.78,8.789e-05,2]
[352384934,1739070632538,-266.48,8.922e-05,2]
[352384935,1739070632547,-1536.91,8.947e-05,2]
[352384936,1739070632556,-19.02356579,8.961e-05,2]
[352384937,1739070632568,-130.97643421,8.961e-05,2]
[352384938,1739070632577,-300.0,8.961e-05,2]
[352384939,1739070632586,-500.0,8.962e-05,2]
[352384940,1739070632596,-500.0,8.962e-05,2]
[352384941,1739070632605,-500.0,8.962e-05,2]
[352384942,1739070632614,-500.0,8.962e-05,2]
[352384943,1739070632626,-500.0,8.962e-05,2]
[352384944,1739070632636,-500.0,8.962e-05,2]
[352384945,1739070632645,-500.0,8.962e-05,2]
[352384946,1739070632654,-500.0,8.962e-05,2]
[352384947,1739070632664,-500.0,8.962e-05,2]
[352384948,1739070632675,-471.94356575,8.962e-05,2]
[352384949,1739070632686,-28.05643425,8.962e-05,2]
[352384950,1739070632696,-500.0,8.962e-05,2]
[352384951,1739070632706,-500.0,8.962e-05,2]
[352384952,1739070632715,-520.71466197,8.962e-05,2]
[352384953,1739070632725,-217.82890428,8.962e-05,2]
[352384954,1739070632736,-352.15461482,8.962e-05,2]
[352384955,1739070632746,-500.0,8.962e-05,2]
[352384956,1739070632755,-85.38254701,8.962e-05,2]
[352384957,1739070632766,-419.98317771,8.962e-05,2]
[352384958,1739070632778,-5.88408597,8.962e-05,2]
[352384959,1739070632787,-500.0,8.962e-05,2]
[352384960,1739070632797,-500.0,8.962e-05,2]
[352384961,1739070632807,-500.0,8.962e-05,2]
[352384962,1739070632816,-500.0,8.962e-05,2]
[352384963,1739070632825,-454.3763876,8.962e-05,2]
[352384964,1739070632834,-500.0,8.962e-05,2]
[352384965,1739070632843,-500.0,8.962e-05,2]
[352384966,1739070632853,-491.29698305,8.962e-05,2]
[352384967,1739070632865,-8.70301695,8.962e-05,2]
[352384968,1739070632874,-500.0,8.962e-05,2]
[352384969,1739070632883,-371.79698311,8.962e-05,2]
[352384970,1739070632894,-128.20301689,8.962e-05,2]
[352384971,1739070632903,-500.0,8.962e-05,2]
[352384972,1739070632913,-368.38752095,8.962e-05,2]
[352384973,1739070632924,-131.61247905,8.962e-05,2]
[352384974,1739070632933,-500.0,8.962e-05,2]
[352384975,1739070632942,-339.15895229,8.962e-05,2]
[352384976,1739070632957,-160.84104771,8.962e-05,2]
[352384977,1739070632966,-500.0,8.962e-05,2]
[352384978,1739070632975,-496.31369229,8.962e-05,2]
[352384979,1739070632986,-3.68630771,8.962e-05,2]
[352384980,1739070632995,-500.0,8.962e-05,2]
[352384982,1739070633004,-446.82346041,8.962e-05,2]
[352384984,1739070633015,-53.17653959,8.962e-05,2]
[352384986,1739070633024,-500.0,8.962e-05,2]
[352384988,1739070633035,-500.0,8.962e-05,2]
[352384989,1739070633044,-500.0,8.962e-05,2]
[352384990,1739070633055,-500.0,8.962e-05,2]
[352384991,1739070633064,-500.0,8.962e-05,2]
[352384992,1739070633074,-500.0,8.962e-05,2]
[352384993,1739070633083,-500.0,8.962e-05,2]
[352384994,1739070633093,-500.0,8.962e-05,2]
[352384995,1739070633102,-500.0,8.962e-05,2]
[352384996,1739070633111,-500.0,8.962e-05,2]
[352384997,1739070633121,-500.0,8.962e-05,2]
[352384998,1739070633131,-500.0,8.962e-05,2]
[352384999,1739070633142,-500.0,8.962e-05,2]
[352385000,1739070633153,-500.0,8.962e-05,2]
[352385001,1739070633163,-500.0,8.962e-05,2]
[352385002,1739070633173,-500.0,8.962e-05,2]
[352385003,1739070633183,-500.0,8.962e-05,2]
[352385004,1739070633192,-500.0,8.962e-05,2]
[352385005,1739070633202,-500.0,8.962e-05,2]
[352385006,1739070633214,-500.0,8.962e-05,2]
[352385007,1739070633224,-500.0,8.962e-05,2]
[352385008,1739070633234,-500.0,8.962e-05,2]
[352385009,1739070633243,-500.0,8.962e-05,2]
[352385010,1739070633253,-500.0,8.962e-05,2]
[352385011,1739070633263,-500.0,8.962e-05,2]
[352385012,1739070633273,-500.0,8.962e-05,2]
[352385013,1739070633284,-500.0,8.962e-05,2]
[352385014,1739070633294,-500.0,8.962e-05,2]
[352385015,1739070633305,-500.0,8.962e-05,2]
[352385016,1739070633314,-513.39404381,8.962e-05,2]
[352385017,1739070633324,-500.0,8.962e-05,2]
[352385018,1739070633334,-500.0,8.962e-05,2]
[352385019,1739070633344,-500.0,8.962e-05,2]
[352385020,1739070633355,-500.0,8.962e-05,2]
[352385021,1739070633365,-645.83,8.962e-05,2]
[352385022,1739070633375,-500.0,8.962e-05,2]
[352385023,1739070633385,-500.0,8.962e-05,2]
[352385024,1739070633395,-500.0,8.962e-05,2]
[352385025,1739070633404,-537.94,8.962e-05,2]
[352385026,1739070633414,-500.0,8.962e-05,2]
[352385027,1739070633424,-500.0,8.962e-05,2]
[352385028,1739070633434,-626.07,8.962e-05,2]
[352385029,1739070633443,-500.0,8.962e-05,2]
[352385030,1739070633453,-629.29,8.962e-05,2]
[352385031,1739070633463,-500.0,8.962e-05,2]
[352385032,1739070633472,-685.36,8.962e-05,2]
[352385033,1739070633482,-500.0,8.962e-05,2]
[352385034,1739070633492,-500.0,8.962e-05,2]
[352385035,1739070633502,-500.0,8.962e-05,2]
[352385036,1739070633511,-500.0,8.962e-05,2]
[352385037,1739070633521,-585.85823262,8.962e-05,2]
[352385038,1739070633535,-235.25176738,8.962e-05,2]
[352385039,1739070633544,-29.30677785,8.962e-05,2]
[352385040,1739070633555,-470.69322215,8.962e-05,2]
[352385041,1739070633565,-320.09677786,8.962e-05,2]
[352385049,1739070638260,-561.18322214,8.962e-05,2]
[352385050,1739070638269,-500.0,8.962e-05,2]
[352385051,1739070638278,-889.48,8.962e-05,2]
[352385052,1739070638290,-500.0,8.962e-05,2]
[352385053,1739070638298,-500.0,8.962e-05,2]
[352385054,1739070638307,-500.0,8.962e-05,2]
[352385055,1739070638316,-500.0,8.962e-05,2]
[352385056,1739070638325,-500.0,8.962e-05,2]
[352385057,1739070638334,-500.0,8.962e-05,2]
[352385058,1739070638343,-500.0,8.962e-05,2]
[352385059,1739070638352,-500.0,8.962e-05,2]
[352385060,1739070638362,-500.0,8.962e-05,2]
[352385061,1739070638371,-509.14320955,8.962e-05,2]
[352385062,1739070638380,-1000.0,8.967e-05,2]
[352385063,1739070638389,-38684.9761,8.973e-05,2]
[352385064,1739070638398,-5000.0,8.973e-05,2]
[352385065,1739070638407,-500.0,9.041e-05,2]
[352385066,1739070638416,-500.0,9.041e-05,2]
[352385067,1739070638425,-500.0,9.041e-05,2]
[352385068,1739070638434,-500.0,9.098e-05,2]
[352385069,1739070638443,-229.67875842,9.098e-05,2]
[352385070,1739070638455,-270.32124158,9.098e-05,2]
[352385071,1739070638464,-500.0,9.098e-05,2]
[352385072,1739070638473,-339.25896842,9.098e-05,2]
[352385073,1739070638484,-243.41103158,9.098e-05,2]
[352385074,1739070638494,-500.0,9.098e-05,2]
[352385075,1739070638503,-500.0,9.098e-05,2]
[352385076,1739070638513,-512.92327288,9.098e-05,2]
[352385077,1739070638526,-41.67672712,9.098e-05,2]
[352385078,1739070638537,-500.0,9.098e-05,2]
[352385079,1739070638547,-498.99327288,9.098e-05,2]
[352385080,1739070638558,-1.00672712,9.098e-05,2]
[352385081,1739070638568,-416.92689971,9.098e-05,2]
[352385082,1739070638580,-262.83310029,9.098e-05,2]
[352385084,1739070638590,-500.0,9.098e-05,2]
[352385086,1739070638599,-500.0,9.098e-05,2]
[352385088,1739070638608,-500.0,9.098e-05,2]
[352385090,1739070638618,-593.48,9.098e-05,2]
[352385092,1739070638629,-810.1,9.098e-05,2]
[352385094,1739070638638,-500.0,9.098e-05,2]
[352385096,1739070638648,-500.0,9.098e-05,2]
[352385098,1739070638658,-754.46,9.098e-05,2]
[352385099,1739070638669,-500.0,9.098e-05,2]
[352385101,1739070638678,-500.0,9.098e-05,2]
[352385103,1739070638688,-714.9154201,9.098e-05,2]
[352385106,1739070638699,-905.9745799,9.098e-05,2]
[352385108,1739070638711,-500.0,9.098e-05,2]
[352385110,1739070638720,-555.72356102,9.098e-05,2]
[352385112,1739070638729,-475.90140266,9.098e-05,2]
[352385117,1739070638774,-24.56859734,9.098e-05,2]
[352385119,1739070638787,-647.49,9.098e-05,2]
[352385122,1739070638796,-500.0,9.098e-05,2]
[352385124,1739070638807,-397.639049,9.098e-05,2]
[352385126,1739070638816,-500.0,9.098e-05,2]
[352385128,1739070638825,-165.210226,9.098e-05,2]
[352385130,1739070638834,-500.0,9.098e-05,2]
[352385131,1739070638844,-749.79,9.098e-05,2]
[352385133,1739070638853,-500.0,9.098e-05,2]
[352385135,1739070638863,-500.0,9.098e-05,2]
[352385138,1739070638873,-949.51,9.098e-05,2]
[352385140,1739070638882,-358.95998745,9.098e-05,2]
[352385142,1739070638892,-500.0,9.098e-05,2]
[352385144,1739070638901,-500.0,9.098e-05,2]
[352385146,1739070638911,-646.75,9.098e-05,2]
[352385148,1739070638920,-665.55,9.098e-05,2]
[352385150,1739070638929,-942.24,9.098e-05,2]
[352385152,1739070638938,-365.840801,9.098e-05,2]
[352385154,1739070638947,-500.0,9.098e-05,2]
[352385156,1739070638956,-2065.47,9.098e-05,2]
[352385158,1739070638965,-20.98133936,9.098e-05,2]
[352385160,1739070638977,-490.32866064,9.098e-05,2]
[352385162,1739070638987,-562.05,9.098e-05,2]
[352385164,1739070638995,-786.60133936,9.098e-05,2]
[352385166,1739070639007,-204.26866064,9.098e-05,2]
[352385168,1739070639016,-908.17,9.098e-05,2]
[352385170,1739070639025,-175.16354688,9.098e-05,2]
[352385172,1739070639037,-544.82978965,9.098e-05,2]
[352385174,1739070639048,-218.86666347,9.098e-05,2]
[352385176,1739070639058,-268.77819492,9.098e-05,2]
[352385179,1739070639069,-919.91180508,9.098e-05,2]
[352385181,1739070639079,-500.0,9.098e-05,2]
[352385183,1739070639088,-2016.52,9.098e-05,2]
[352385185,1739070639097,-747.37,9.098e-05,2]
[352385187,1739070639107,-500.0,9.098e-05,2]
[352385189,1739070639116,-849.78,9.098e-05,2]
[352385191,1739070639125,-532.41819492,9.098e-05,2]
[352385193,1739070639136,-210.65180508,9.098e-05,2]
[352385195,1739070639145,-500.0,9.098e-05,2]
[352385197,1739070639154,-1144.01,9.098e-05,2]
[352385199,1739070639164,-500.0,9.098e-05,2]
[352385201,1739070639173,-510.92,9.098e-05,2]
[352385203,1739070639183,-500.0,9.098e-05,2]
[352385205,1739070639192,-500.0,9.098e-05,2]
[352385207,1739070639202,-943.3,9.098e-05,2]
[352385209,1739070639211,-2184.57,9.098e-05,2]
[352385211,1739070639221,-200.75960167,9.098e-05,2]
[352385213,1739070639236,-299.24039833,9.098e-05,2]
[352385215,1739070639245,-500.0,9.099e-05,2]
[352385217,1739070639254,-500.0,9.099e-05,2]
[352385219,1739070639264,-500.0,9.099e-05,2]
[352385221,1739070639273,-303.91730574,9.099e-05,2]
[352385223,1739070639283,-500.0,9.099e-05,2]
[352385225,1739070639294,-520.49040532,9.099e-05,2]
[352385227,1739070639303,-500.0,9.099e-05,2]
[352385229,1739070639312,-500.0,9.099e-05,2]
[352385231,1739070639322,-517.18996867,9.099e-05,2]
[352385233,1739070639331,-500.0,9.099e-05,2]
[352385235,1739070639340,-500.0,9.099e-05,2]
[352385237,1739070639349,-500.0,9.099e-05,2]
[352385239,1739070639358,-192.734778,9.099e-05,2]
[352385241,1739070639370,-307.265222,9.099e-05,2]
[352385243,1739070639379,-500.0,9.099e-05,2]
[352385245,1739070639388,-500.0,9.099e-05,2]
[352385247,1739070639396,-500.0,9.099e-05,2]
[352385249,1739070639406,-500.0,9.099e-05,2]
[352385251,1739070639415,-459.1861075,9.099e-05,2]
[352385254,1739070639425,-40.8138925,9.099e-05,2]
[352385256,1739070639434,-500.0,9.099e-05,2]
[352385258,1739070639444,-500.0,9.099e-05,2]
[352385260,1739070639452,-500.0,9.099e-05,2]
[352385262,1739070639461,-500.0,9.099e-05,2]
[352385264,1739070639470,-500.0,9.099e-05,2]
[352385265,1739070639480,-500.0,9.099e-05,2]
[352385267,1739070639489,-500.0,9.099e-05,2]
[352385269,1739070639498,-180.12937175,9.099e-05,2]
[352385271,1739070639507,-500.0,9.099e-05,2]
[352385273,1739070639516,-500.0,9.099e-05,2]
[352385275,1739070639525,-500.0,9.099e-05,2]
[352385277,1739070639535,-500.0,9.099e-05,2]
[352385279,1739070639544,-500.0,9.099e-05,2]
[352385281,1739070639553,-500.0,9.099e-05,2]
[352385283,1739070639562,-500.0,9.099e-05,2]
[352385285,1739070639571,-500.0,9.099e-05,2]
[352385287,1739070639580,-500.0,9.099e-05,2]
[352385289,1739070639590,-500.0,9.099e-05,2]
[352385291,1739070639599,-500.0,9.099e-05,2]
[352385293,1739070639608,-500.0,9.099e-05,2]
[352385295,1739070639617,-500.0,9.099e-05,2]
[352385297,1739070639629,-500.0,9.099e-05,2]
[352385299,1739070639638,-500.0,9.099e-05,2]
[352385301,1739070639648,-500.0,9.099e-05,2]
[352385303,1739070639657,-500.0,9.099e-05,2]
[352385305,1739070639667,-500.0,9.099e-05,2]
[352385307,1739070639676,-500.0,9.099e-05,2]
[352385309,1739070639686,-500.0,9.099e-05,2]
[352385311,1739070639695,-500.0,9.099e-05,2]
[352385313,1739070639706,-500.0,9.099e-05,2]
[352385315,1739070639715,-500.0,9.099e-05,2]
[352385317,1739070639725,-500.0,9.099e-05,2]
[352385319,1739070639734,-500.0,9.099e-05,2]
[352385321,1739070639743,-500.0,9.099e-05,2]
[352385323,1739070639753,-500.0,9.099e-05,2]
[352385325,1739070639762,-500.0,9.099e-05,2]
[352385327,1739070639771,-500.0,9.099e-05,2]
[352385329,1739070639780,-500.0,9.099e-05,2]
[352385331,1739070639790,-500.0,9.099e-05,2]
[352385333,1739070639799,-500.0,9.099e-05,2]
[352385335,1739070639808,-279.05673575,9.099e-05,2]
[352385338,1739070639828,-366.77326425,9.099e-05,2]
[352385340,1739070639837,-88.85173575,9.099e-05,2]
[352385343,1739070639848,-411.14826425,9.099e-05,2]
[352385345,1739070639857,-14.90845577,9.099e-05,2]
[352385352,1739070640388,-485.09154423,9.099e-05,2]
[352385353,1739070640398,-14.90845577,9.099e-05,2]
[352385354,1739070640416,-485.09154423,9.099e-05,2]
[352385355,1739070640426,-298.25457452,9.099e-05,2]
[352385356,1739070640438,-239.68542548,9.099e-05,2]
[352385357,1739070640447,-500.0,9.099e-05,2]
[352385358,1739070640456,-500.0,9.099e-05,2]
[352385359,1739070640466,-626.07,9.099e-05,2]
[352385360,1739070640475,-500.0,9.099e-05,2]
[352385361,1739070640485,-629.29,9.099e-05,2]
[352385362,1739070640494,-500.0,9.099e-05,2]
[352385363,1739070640504,-685.36,9.099e-05,2]
[352385364,1739070640513,-500.0,9.099e-05,2]
[352385365,1739070640522,-500.0,9.099e-05,2]
[352385366,1739070640532,-500.0,9.099e-05,2]
[352385367,1739070640543,-500.0,9.099e-05,2]
[352385368,1739070640552,-821.11,9.099e-05,2]
[352385369,1739070640561,-500.0,9.099e-05,2]
[352385370,1739070640571,-881.28,9.099e-05,2]
[352385371,1739070640581,-505.10374659,9.099e-05,2]
[352385372,1739070640590,-889.48,9.099e-05,2]
[352385373,1739070640601,-500.0,9.099e-05,2]
[352385374,1739070640610,-500.0,9.099e-05,2]
[352385375,1739070640621,-500.0,9.099e-05,2]
[352385376,1739070640635,-500.0,9.099e-05,2]
[352385377,1739070640644,-500.0,9.099e-05,2]
[352385378,1739070640653,-500.0,9.099e-05,2]
[352385379,1739070640663,-500.0,9.099e-05,2]
[352385380,1739070640673,-500.0,9.099e-05,2]
[352385381,1739070640683,-569.9336701,9.234e-05,2]
[352385382,1739070640693,-635.33144581,9.234e-05,2]
[352385383,1739070640704,-500.0,9.234e-05,2]
[352385384,1739070640714,-875.68,9.234e-05,2]
[352385385,1739070640723,-659.36,9.234e-05,2]
[352385386,1739070640732,-500.0,9.234e-05,2]
[352385387,1739070640741,-715.21375602,9.234e-05,2]
[352385388,1739070640768,-194.06624398,9.234e-05,2]
[352385389,1739070640778,-547.43,9.234e-05,2]
[352385390,1739070640788,-371.10883856,9.234e-05,2]
[352385391,1739070640799,-678.93116144,9.234e-05,2]
[352385392,1739070640809,-353.98049428,9.234e-05,2]
[352385393,1739070640820,-264.73499999,9.234e-05,2]
[352385394,1739070640831,-321.06919947,9.234e-05,2]
[352385395,1739070640862,-300.0,9.234e-05,2]
[352385396,1739070640897,-131.26530626,9.234e-05,2]
[352385397,1739070640906,-500.0,9.234e-05,2]
[352385398,1739070640915,-500.0,9.234e-05,2]
[352385399,1739070640925,-737.52,9.234e-05,2]
[352385400,1739070640935,-1508.71,9.234e-05,2]
[352385401,1739070640944,-500.0,9.234e-05,2]
[352385403,1739070640953,-1068.05,9.234e-05,2]
[352385404,1739070640963,-834.82,9.234e-05,2]
[352385405,1739070640972,-1379.87,9.234e-05,2]
[352385406,1739070640982,-1014.14,9.234e-05,2]
[352385407,1739070640991,-658.68,9.234e-05,2]
[352385408,1739070641000,-500.0,9.234e-05,2]
[352385409,1739070641009,-607.97,9.234e-05,2]
[352385410,1739070641018,-1697.36,9.234e-05,2]
[352385411,1739070641028,-500.0,9.234e-05,2]
[352385412,1739070641037,-500.0,9.234e-05,2]
[352385413,1739070641047,-596.74,9.234e-05,2]
[352385414,1739070641056,-500.0,9.234e-05,2]
[352385415,1739070641065,-500.0,9.234e-05,2]
[352385416,1739070641074,-500.0,9.234e-05,2]
[352385417,1739070641083,-615.11,9.234e-05,2]
[352385418,1739070641092,-500.0,9.234e-05,2]
[352385419,1739070641101,-1394.41,9.234e-05,2]
[352385420,1739070641110,-1385.12,9.234e-05,2]
[352385421,1739070641120,-500.0,9.234e-05,2]
[352385422,1739070641129,-765.98,9.234e-05,2]
[352385423,1739070641138,-157.143517,9.234e-05,2]
[352385424,1739070641147,-500.0,9.234e-05,2]
[352385425,1739070641157,-1068.19,9.234e-05,2]
[352385426,1739070641167,-500.0,9.234e-05,2]
[352385427,1739070641176,-1092.19,9.234e-05,2]
[352385428,1739070641185,-500.0,9.235e-05,2]
[352385429,1739070641194,-500.0,9.235e-05,2]
[352385430,1739070641203,-500.0,9.235e-05,2]
[352385431,1739070641212,-500.0,9.235e-05,2]
[352385432,1739070641222,-500.0,9.235e-05,2]
[352385433,1739070641231,-500.0,9.235e-05,2]
[352385434,1739070641240,-547.00867477,9.235e-05,2]
[352385435,1739070641249,-228.67440538,9.235e-05,2]
[352385436,1739070641259,-500.0,9.235e-05,2]
[352385437,1739070641268,-500.0,9.235e-05,2]
[352385438,1739070641277,-500.0,9.235e-05,2]
[352385439,1739070641286,-500.0,9.235e-05,2]
[352385440,1739070641296,-500.0,9.235e-05,2]
[352385441,1739070641305,-500.0,9.235e-05,2]
[352385442,1739070641314,-500.0,9.235e-05,2]
[352385443,1739070641323,-783.86,9.235e-05,2]
[352385444,1739070641332,-500.0,9.235e-05,2]
[352385445,1739070641342,-500.0,9.235e-05,2]
[352385446,1739070641351,-500.0,9.235e-05,2]
[352385447,1739070641360,-546.38,9.235e-05,2]
[352385448,1739070641369,-500.0,9.235e-05,2]
[352385449,1739070641379,-500.0,9.235e-05,2]
[352385450,1739070641387,-500.0,9.235e-05,2]
[352385451,1739070641396,-500.0,9.235e-05,2]
[352385452,1739070641406,-500.0,9.235e-05,2]
[352385453,1739070641415,-500.0,9.235e-05,2]
[352385454,1739070641425,-500.0,9.235e-05,2]
[352385455,1739070641435,-264.69190377,9.235e-05,2]
[352385456,1739070641444,-500.0,9.235e-05,2]
[352385457,1739070641453,-500.0,9.235e-05,2]
[352385458,1739070641462,-500.0,9.235e-05,2]
[352385459,1739070641474,-500.0,9.235e-05,2]
[352385460,1739070641484,-582.67,9.235e-05,2]
[352385461,1739070641493,-500.0,9.235e-05,2]
[352385462,1739070641503,-500.0,9.235e-05,2]
[352385463,1739070641513,-500.0,9.235e-05,2]
[352385464,1739070641522,-500.0,9.235e-05,2]
[352385465,1739070641531,-500.0,9.235e-05,2]
[352385466,1739070641541,-302.41950984,9.235e-05,2]
[352385467,1739070641551,-610.37,9.235e-05,2]
[352385468,1739070641560,-388.66462566,9.235e-05,2]
[352385469,1739070641570,-500.0,9.235e-05,2]
[352385470,1739070641579,-578.40310998,9.235e-05,2]
[352385471,1739070641589,-554.6,9.235e-05,2]
[352385472,1739070641598,-500.0,9.235e-05,2]
[352385473,1739070641608,-500.0,9.235e-05,2]
[352385474,1739070641617,-500.0,9.235e-05,2]
[352385475,1739070641629,-500.0,9.235e-05,2]
[352385476,1739070641640,-679.76,9.235e-05,2]
[352385477,1739070641649,-500.0,9.235e-05,2]
[352385478,1739070641659,-500.0,9.235e-05,2]
[352385479,1739070641670,-500.0,9.235e-05,2]
[352385480,1739070641679,-500.0,9.235e-05,2]
[352385481,1739070641883,-500.0,9.235e-05,2]
[352385482,1739070641893,-500.0,9.235e-05,2]
[352385483,1739070641904,-500.0,9.235e-05,2]
[352385484,1739070641913,-500.0,9.235e-05,2]
[352385485,1739070641922,-166.84490125,9.235e-05,2]
[352385486,1739070641931,-191.59072333,9.235e-05,2]
[352385487,1739070641940,-500.0,9.235e-05,2]
[352385488,1739070641950,-500.0,9.235e-05,2]
[352385489,1739070641960,-679.68,9.235e-05,2]
[352385490,1739070641969,-500.0,9.235e-05,2]
[352385491,1739070641979,-500.0,9.235e-05,2]
[352385492,1739070641989,-500.0,9.235e-05,2]
[352385493,1739070641998,-500.0,9.235e-05,2]
[352385494,1739070642007,-458.49937099,9.235e-05,2]
[352385495,1739070642016,-500.0,9.235e-05,2]
[352385496,1739070642024,-500.0,9.235e-05,2]
[352385497,1739070642033,-613.54695566,9.235e-05,2]
[352385498,1739070642044,-500.0,9.235e-05,2]
[352385499,1739070642053,-380.04841806,9.235e-05,2]